bitfinex/quotes_SOLUSD_20240809
["timestamp","ask_amount","ask_price","bid_price","bid_amount"]
[1723246727323,0.9834357,157.28,157.27,6.3584]
[1723246728019,0.9834357,157.28,157.19,18.43814587]
[1723246728191,0.9834357,157.28,157.27,6.3584]
[1723246729192,15.8853,157.38,157.27,6.3584]
[1723246729193,21.46550784,157.54,157.36,0.12549]
[1723246729420,6.1897,157.83,157.36,0.12549]
[1723246729421,47.21,157.63,157.56,6.3465]
[1723246729619,30.0,157.57,157.49,1.2690618]
[1723246729832,47.21,157.57,157.46,1.26920255]
[1723246730113,7.1731357,157.64,157.5,0.12549]
[1723246730290,7.1731357,157.64,157.47,0.25098]
[1723246730291,47.21,157.63,157.48,10.14317501]
[1723246730493,6.3465,157.57,157.47,0.12549]
[1723246730692,47.21,157.6,157.47,0.25098]
[1723246730943,47.21,157.6,157.48,0.25098]
[1723246731097,47.21,157.6,157.5,0.12549]
[1723246731413,47.21,157.63,157.5,1.52015139]
[1723246731620,47.21,157.63,157.52,0.12549]
[1723246731791,47.21,157.63,157.51,0.12549]
[1723246732195,6.3449,157.61,157.45,1.26926084]
[1723246732394,47.21,157.6,157.47,0.12549]
[1723246732600,53.5553,157.6,157.47,1.39488941]
[1723246732919,47.21,157.57,157.39,18.43814587]
[1723246733304,47.21,157.54,157.39,18.43814587]
[1723246733624,47.21,157.54,157.4,1.26988069]
[1723246733918,47.21,157.54,157.4,21.26972476]
[1723246734298,47.21,157.54,157.4,1.26972476]
[1723246734912,47.21,157.54,157.39,1.26974252]
[1723246735103,47.21,157.54,157.4,20.0]
[1723246735526,47.21,157.51,157.38,43.86859187]
[1723246735697,47.21,157.45,157.39,1.26987443]
[1723246735895,47.21,157.45,157.33,18.43814587]
[1723246735896,6.3517,157.44,157.33,18.43814587]
[1723246736095,6.3522,157.43,157.32,25.442435]
[1723246736308,53.5626,157.42,157.27,20.0]
[1723246736621,53.5626,157.42,157.28,25.442435]
[1723246736922,47.21,157.42,157.27,20.0]
[1723246737214,47.21,157.42,157.27,45.442435]
[1723246737898,47.21,157.42,157.28,18.43814587]
[1723246738225,47.21,157.39,157.25,18.43814587]
[1723246738530,53.5662,157.33,157.26,1.27099261]
[1723246738718,60.8822,157.41,157.21,20.0]
[1723246738719,47.21,157.36,157.23,1.06762366]
[1723246738898,60.8822,157.41,157.21,20.0]
[1723246738899,6.3537,157.39,157.21,63.89775087]
[1723246739104,47.21,157.38,157.22,1.27123631]
[1723246739399,6.3532,157.4,157.25,18.43814587]
[1723246739600,47.21,157.41,157.26,1.27101605]
[1723246739824,53.564,157.38,157.26,1.27101605]
[1723246740020,47.21,157.38,157.26,1.27101605]
[1723246740326,6.3545,157.37,157.26,1.27101605]
[1723246740510,53.5653,157.35,157.21,25.459605]
[1723246740701,47.21,157.38,157.22,21.27133778]
[1723246741401,47.21,157.38,157.22,1.27133778]
[1723246741603,53.5653,157.35,157.23,1.2712714]
[1723246741816,47.21,157.35,157.21,25.459605]
[1723246742001,6.3569,157.31,157.21,25.459605]
[1723246742315,47.21,157.29,157.18,6.64562457]
[1723246742501,47.21,157.29,157.21,1.27162437]
[1723246743524,47.21,157.29,157.22,1.27168964]
[1723246743698,47.21,157.29,157.19,1.27168863]
[1723246744132,53.5677,157.29,157.19,1.27168863]
[1723246744300,6.3582,157.28,157.18,6.64562457]
[1723246744630,47.21,157.26,157.18,6.64562457]
[1723246744927,6.3593,157.25,157.13,1.27216509]
[1723246745124,47.21,157.26,157.15,6.65018785]
[1723246745125,53.5691,157.26,157.15,6.65018785]
[1723246745421,6.3589,157.26,157.16,1.27195582]
[1723246745623,47.21,157.28,157.16,1.27195582]
[1723246745826,53.5672,157.31,157.16,39.71010169]
[1723246746127,47.21,157.31,157.16,1.27195582]
[1723246746304,6.3577,157.29,157.16,1.27195582]
[1723246746501,47.21,157.28,157.15,6.65018785]
[1723246746830,47.21,157.28,157.17,0.12549]
[1723246746996,47.21,157.28,157.17,1.52277929]
[1723246747199,6.3584,157.27,157.17,1.52277929]
[1723246747398,6.3584,157.27,157.17,0.12549]
[1723246747626,47.21,157.25,157.15,6.65018785]
[1723246747828,6.3599,157.24,157.15,6.65018785]
[1723246748128,47.21,157.25,157.15,6.65018785]
[1723246748129,6.3601,157.23,157.15,6.65018785]
[1723246748621,6.361,157.21,157.15,6.65018785]
[1723246749104,47.21,157.22,157.15,6.65018785]
[1723246749306,6.3609,157.21,157.15,6.65018785]
[1723246749706,6.3613,157.2,157.15,6.65018785]
[1723246749902,47.21,157.22,157.15,6.65018785]
[1723246750204,6.3621,157.18,157.15,6.65018785]
[1723246750627,47.21,157.19,157.02,25.487085]
[1723246750807,6.3633,157.15,157.03,1.27290682]
[1723246751001,6.3633,157.15,157.04,6.64557711]
[1723246751205,47.21,157.16,157.04,6.64557711]
[1723246751405,47.21,157.16,156.99,63.93000587]
[1723246751406,6.3642,157.13,157.01,1.27308126]
[1723246751623,47.21,157.16,157.03,6.64626928]
[1723246751928,47.21,157.19,157.04,1.27283805]
[1723246752110,47.21,157.22,157.07,47.21]
[1723246752311,6.3633,157.16,157.05,18.43814587]
[1723246752511,6.3633,157.16,157.03,6.64626928]
[1723246752512,47.21,157.16,157.03,6.64626928]
[1723246752725,6.3633,157.15,157.04,0.12549]
[1723246753028,6.3634,157.15,157.04,0.12549]
[1723246753228,6.3634,157.15,157.03,6.64626928]
[1723246753433,6.3634,157.15,157.04,1.27305284]
[1723246753609,53.5732,157.16,157.04,1.27305284]
[1723246754117,47.21,157.19,157.04,65.64814587]
[1723246754313,47.21,157.19,157.05,1.27298678]
[1723246754634,6.3626,157.17,157.05,1.27298678]
[1723246754804,6.3625,157.17,157.05,1.27298678]
[1723246755001,6.3621,157.18,157.06,1.27279575]
[1723246755205,6.3621,157.18,157.07,0.50196]
[1723246755406,53.5717,157.19,157.08,1.27275133]
[1723246755628,6.3623,157.18,157.08,1.27275133]
[1723246755807,6.3627,157.17,157.07,0.12549]
[1723246756004,47.21,157.19,157.03,6.64626928]
[1723246756311,47.21,157.15,157.03,7.91932218]
[1723246756520,71.3623,157.18,157.03,7.91932218]
[1723246756712,20.0,157.18,157.03,7.91932218]
[1723246757124,6.363,157.16,157.03,7.91932218]
[1723246757327,6.3625,157.17,157.03,26.35746805]
[1723246757537,6.363,157.16,157.03,7.91932218]
[1723246757717,6.3635,157.15,157.03,7.91932218]
[1723246758313,6.3634,157.15,157.03,7.91932218]
[1723246758832,47.21,157.16,157.03,7.91932218]
[1723246759126,6.3625,157.17,157.03,7.91932218]
[1723246759331,6.3625,157.17,157.04,0.50196]
[1723246759626,6.3625,157.17,157.06,0.12549]
[1723246759828,6.3625,157.17,157.06,1.64933119]
[1723246760007,6.3625,157.17,157.06,1.52384119]
[1723246760206,6.3637,157.14,157.04,1.27279847]
[1723246760429,20.0,157.18,157.05,1.27311195]
[1723246760629,6.3628,157.17,157.05,1.27311195]
[1723246761028,47.21,157.19,157.05,1.27311195]
[1723246761212,47.21,157.22,157.06,20.0]
[1723246761412,53.5705,157.22,157.09,0.12549]
[1723246761618,47.21,157.25,157.09,1.64890398]
[1723246761922,47.21,157.36,157.12,0.12549]
[1723246761923,47.21,157.28,157.12,0.12549]
[1723246762241,6.3601,157.24,157.12,0.50196]
[1723246762438,6.3601,157.24,157.14,0.12549]
[1723246762739,6.3601,157.24,157.14,1.64865461]
[1723246763130,47.21,157.25,157.14,1.64865461]
[1723246763325,47.21,157.25,157.15,0.12549]
[1723246763529,6.3605,157.22,157.14,0.12549]
[1723246763718,47.21,157.25,157.14,0.12549]
[1723246763915,6.3597,157.24,157.14,1.52321342]
[1723246764143,47.21,157.25,157.15,0.12549]
[1723246764352,47.21,157.28,157.15,19.96110927]
[1723246764521,15.6215,157.3,157.17,0.12549]
[1723246764724,47.21,157.31,157.17,0.12549]
[1723246764725,47.21,157.31,157.17,19.96083818]
[1723246764929,53.685,157.34,157.19,0.12549]
[1723246765131,53.685,157.34,157.19,1.39703477]
[1723246765430,47.21,157.37,157.23,0.12549]
[1723246765627,47.21,157.37,157.23,1.77336074]
[1723246765825,47.21,157.34,157.23,0.25098]
[1723246766152,47.21,157.31,157.2,0.12549]
[1723246766322,47.21,157.31,157.2,0.50196]
[1723246766523,6.3556,157.35,157.22,0.12549]
[1723246766738,6.3558,157.34,157.22,1.77342009]
[1723246766947,53.5651,157.36,157.22,1.77342009]
[1723246767122,20.0,157.35,157.22,1.77342009]
[1723246767329,53.5651,157.36,157.22,1.77342009]
[1723246767555,47.21,157.36,157.22,1.77342009]
[1723246767849,63.0976,157.36,157.18,18.43814587]
[1723246768049,63.0976,157.36,157.19,1.27171105]
[1723246768222,63.0976,157.36,157.19,46.27171105]
[1723246768223,6.3562,157.33,157.19,46.27171105]
[1723246768422,45.0,157.35,157.19,1.27171105]
[1723246768423,6.3565,157.32,157.19,1.27171105]
[1723246768623,47.21,157.32,157.16,47.21]
[1723246768847,47.21,157.32,157.17,45.0]
[1723246769026,47.21,157.32,157.16,47.21]
[1723246769226,47.21,157.32,157.17,0.25098]
[1723246769445,6.3568,157.31,157.17,0.25098]
[1723246769641,6.3568,157.31,157.19,0.12549]
[1723246769853,6.3568,157.31,157.19,0.25098]
[1723246770024,53.5665,157.32,157.19,1.39720375]
[1723246770228,53.5678,157.29,157.15,18.43814587]
[1723246770543,53.5677,157.29,157.15,18.43814587]
[1723246770749,53.5677,157.29,157.16,1.27190352]
[1723246771048,47.21,157.29,157.16,1.27190352]
[1723246771835,47.21,157.29,157.04,72.852]
[1723246771836,47.21,157.26,157.11,38.43814587]
[1723246772229,47.21,157.29,157.14,20.0]
[1723246772452,47.21,157.29,157.15,1.27177572]
[1723246772749,47.21,157.29,157.15,18.43814587]
[1723246773138,47.21,157.29,157.16,1.77378385]
[1723246773329,47.21,157.29,157.13,47.21]
[1723246773534,6.3585,157.27,157.13,47.21]
[1723246773737,6.3585,157.27,157.14,1.27203473]
[1723246773929,6.475,157.48,157.21,20.0]
[1723246774155,47.21,157.39,157.22,111.91939525]
[1723246774653,47.21,157.39,157.23,18.68912587]
[1723246774853,6.3541,157.38,157.25,0.12549]
[1723246775031,6.3541,157.38,157.25,1.52219437]
[1723246775225,47.21,157.39,157.26,0.12549]
[1723246775451,6.64345748,157.47,157.28,0.12549]
[1723246775452,47.21,157.42,157.28,0.12549]
[1723246775650,6.3539,157.39,157.28,1.39643989]
[1723246775852,47.21,157.39,157.23,18.43814587]
[1723246776038,6.356,157.33,157.24,1.27136683]
[1723246776241,6.3565,157.32,157.21,1.27120508]
[1723246776439,47.21,157.36,157.21,1.27120508]
[1723246776639,47.21,157.36,157.21,46.27120508]
[1723246776845,47.21,157.36,157.23,18.43814587]
[1723246777045,47.21,157.36,157.24,1.27129407]
[1723246777368,6.3558,157.34,157.24,1.27129407]
[1723246777736,6.356,157.33,157.23,0.25098]
[1723246778053,47.21,157.33,157.21,1.27149238]
[1723246778362,45.0,157.32,157.19,1.2717182]
[1723246778531,6.3573,157.3,157.19,1.2717182]
[1723246778937,47.21,157.36,157.19,21.2717182]
[1723246779135,26.3552,157.35,157.19,21.2717182]
[1723246779549,26.3552,157.35,157.2,45.50196]
[1723246779750,6.3556,157.34,157.22,0.12549]
[1723246779950,6.3562,157.33,157.22,1.77345042]
[1723246780142,20.0,157.35,157.23,0.12549]
[1723246780547,20.0,157.35,157.23,1.27161313]
[1723246780859,20.0,157.35,157.24,1.27163699]
[1723246780860,6.3568,157.32,157.24,1.27163699]
[1723246781037,45.0,157.34,157.2,1.39712699]
[1723246781238,47.21,157.31,157.16,18.43814587]
[1723246781459,45.0,157.3,157.17,1.27200175]
[1723246781638,6.3577,157.29,157.17,1.27200175]
[1723246781837,6.3573,157.3,157.17,1.27200175]
[1723246782039,47.21,157.31,157.17,1.27200175]
[1723246782248,47.21,157.31,157.15,18.43814587]
[1723246782646,45.0,157.3,157.16,0.37647]
[1723246782841,45.0,157.3,157.13,67.21]
[1723246782842,47.21,157.25,157.13,1.27191726]
[1723246783041,6.3602,157.23,157.1,59.35507304]
[1723246783256,45.0,157.22,157.11,18.438146]
[1723246783462,47.21,157.2,157.05,19.71090854]
[1723246783658,6.3617,157.19,157.07,6.64890945]
[1723246784357,6.3621,157.18,157.07,7.92167363]
[1723246784567,53.5716,157.2,157.07,7.92167363]
[1723246784864,6.0616,157.41,157.19,67.21]
[1723246785064,6.0616,157.41,157.26,20.0]
[1723246785261,16.4816,157.43,157.27,19.70906781]
[1723246785457,16.4816,157.43,157.29,18.43814587]
[1723246785641,16.4816,157.43,157.3,1.5217346]
[1723246785849,6.3524,157.42,157.3,0.25098]
[1723246786166,16.4816,157.43,157.3,0.25098]
[1723246786353,16.4816,157.43,157.31,0.25098]
[1723246786554,6.3536,157.39,157.3,0.12549]
[1723246786747,6.3541,157.38,157.29,0.12549]
[1723246786946,47.21,157.41,157.27,0.12549]
[1723246787148,6.3549,157.36,157.27,0.12549]
[1723246787365,20.0,157.4,157.27,1.2713012]
[1723246787561,20.0,157.4,157.28,0.50196]
[1723246787760,20.0,157.42,157.28,0.12549]
[1723246787964,94.42,157.29,157.19,18.43814587]
[1723246788140,94.42,157.29,157.07,6.64890945]
[1723246788141,6.3633,157.15,157.07,6.64890945]
[1723246788348,47.21,157.15,157.07,6.64890945]
[1723246788663,47.21,157.15,157.04,18.438146]
[1723246788664,47.21,157.1,157.01,1.10718741]
[1723246788875,6.3673,157.06,156.94,9.16784458]
[1723246789078,47.21,157.04,156.94,9.16784458]
[1723246789367,26.3682,157.03,156.94,9.16784458]
[1723246789545,6.3687,157.02,156.94,9.16784458]
[1723246789750,6.3696,157.0,156.94,9.16784458]
[1723246789947,6.3688,157.02,156.94,9.16784458]
[1723246790471,6.365,157.11,156.95,48.48415319]
[1723246790651,6.365,157.11,156.94,9.16784458]
[1723246790652,20.0,157.1,156.99,1.27351093]
[1723246790860,6.365,157.11,156.99,1.27351093]
[1723246791052,6.3658,157.09,156.99,1.27351093]
[1723246791251,45.0,157.1,156.98,48.1064958]
[1723246791252,6.3663,157.08,156.98,0.8964958]
[1723246791452,6.3647,157.12,156.99,1.27362054]
[1723246791657,65.0,157.11,156.99,1.27362054]
[1723246791861,71.3651,157.11,156.99,1.27362054]
[1723246792071,26.3651,157.11,156.99,1.27362054]
[1723246792661,26.3651,157.11,157.0,0.12549]
[1723246792969,47.21,157.14,157.0,0.25098]
[1723246793173,47.21,157.14,157.01,0.25098]
[1723246793774,47.21,157.14,156.98,48.2319858]
[1723246793775,47.21,157.14,156.98,0.8964958]
[1723246793975,47.21,157.11,156.98,0.8964958]
[1723246794270,6.367,157.06,156.98,0.8964958]
[1723246794446,45.0,157.1,156.98,0.8964958]
[1723246794447,45.0,157.05,156.98,0.8964958]
[1723246794648,47.21,157.08,156.98,0.8964958]
[1723246794847,6.367,157.06,156.98,0.8964958]
[1723246795051,45.0,157.07,156.98,0.8964958]
[1723246795465,6.3673,157.06,156.98,0.8964958]
[1723246795848,6.3683,157.03,156.98,0.8964958]
[1723246796063,6.3687,157.02,156.98,0.8964958]
[1723246796264,6.3694,157.0,156.98,0.8964958]
[1723246796850,47.21,156.99,156.98,0.8964958]
[1723246797181,112.21,156.99,156.98,0.8964958]
[1723246797373,6.3722,156.93,156.82,15.5208]
[1723246797855,6.3728,156.92,156.8,6.4273]
[1723246798059,65.12549,156.99,156.82,6.3763]
[1723246798060,47.21,156.93,156.82,6.3763]
[1723246798249,65.0,156.92,156.76,1.27518353]
[1723246798451,47.21,156.96,156.78,20.0]
[1723246798679,47.21,156.96,156.82,1.27472579]
[1723246798680,65.0,156.95,156.82,1.27472579]
[1723246798866,6.3718,156.94,156.87,6.3743]
[1723246799068,6.3718,156.94,156.77,47.21]
[1723246799069,65.0,156.95,156.77,47.21]
[1723246799268,65.0,156.95,156.78,21.27478892]
[1723246799457,65.0,156.95,156.78,1.27478892]
[1723246799653,6.3727,156.92,156.77,47.21]
[1723246800381,6.3727,156.92,156.67,3.56826789]
[1723246800382,47.21,156.88,156.72,6.2325]
[1723246800587,6.3767,156.82,156.72,6.2325]
[1723246800787,6.3767,156.82,156.68,47.21]
[1723246801083,6.3767,156.82,156.75,6.3795]
[1723246801464,53.5867,156.82,156.67,21.4377]
[1723246801769,6.3802,156.74,156.69,6.3819]
[1723246802075,6.3802,156.74,156.65,0.8964958]
[1723246802076,6.3802,156.74,156.68,6.382]
[1723246802384,47.21,156.78,156.65,0.8964958]
[1723246802586,20.0,156.77,156.65,0.8964958]
[1723246802772,45.0,156.76,156.65,0.8964958]
[1723246802961,47.21,156.75,156.65,0.8964958]
[1723246803163,6.3805,156.73,156.65,0.8964958]
[1723246803361,20.0,156.74,156.65,0.8964958]
[1723246803589,20.0,156.74,156.66,6.3832]
[1723246803886,47.21,156.72,156.65,0.8964958]
[1723246804076,26.3815,156.71,156.65,0.8964958]
[1723246804258,20.0,156.71,156.66,6.383]
[1723246804467,47.21,156.72,156.67,6.3828]
[1723246804767,47.21,156.72,156.65,0.8964958]
[1723246804988,47.21,156.72,156.65,7.2800958]
[1723246805169,6.3812,156.71,156.65,7.2800958]
[1723246805504,47.21,156.69,156.65,0.8964958]
[1723246805791,6.3832,156.66,156.65,0.8964958]
[1723246806289,118.5932,156.66,156.65,0.8964958]
[1723246806988,6.3855,156.61,156.55,6.3873]
[1723246807288,67.21,156.66,156.56,1.27736087]
[1723246807470,20.0,156.66,156.51,20.0]
[1723246807672,20.0,156.66,156.61,5.8852]
[1723246807868,20.0,156.66,156.6,6.3855]
[1723246807869,26.3834,156.66,156.6,6.3855]
[1723246808065,26.3832,156.66,156.61,6.3852]
[1723246808268,26.3832,156.66,156.51,67.21]
[1723246808269,26.3833,156.66,156.6,6.3856]
[1723246808467,26.3832,156.66,156.6,6.3856]
[1723246808693,15.42489,156.73,156.54,67.21]
[1723246808986,15.42489,156.73,156.48,47.21]
[1723246808987,6.3809,156.72,156.66,6.3832]
[1723246809281,22.362,156.78,156.57,47.21]
[1723246809282,6.3822,156.69,156.57,47.21]
[1723246809483,47.21,156.73,156.56,1.27660323]
[1723246809685,6.3808,156.72,156.58,0.12549]
[1723246809869,6.3788,156.77,156.61,0.12549]
[1723246810188,6.416,156.78,156.61,0.12549]
[1723246810189,6.416,156.78,156.61,0.50196]
[1723246810370,6.3808,156.72,156.67,6.3826]
[1723246810690,6.416,156.78,156.68,1.27644877]
[1723246810899,6.3791,156.77,156.71,6.381]
[1723246811186,26.3795,156.76,156.7,6.3815]
[1723246811386,6.416,156.78,156.63,0.12549]
[1723246811572,6.3793,156.76,156.65,0.12549]
[1723246811768,47.21,156.8,156.65,1.40165491]
[1723246811970,6.3784,156.78,156.72,6.3807]
[1723246812170,6.3788,156.77,156.72,6.3807]
[1723246812372,47.21,156.8,156.67,0.12549]
[1723246812571,47.21,156.8,156.74,6.3796]
[1723246812572,6.378,156.79,156.74,6.3796]
[1723246812898,53.5866,156.83,156.67,1.40150825]
[1723246813195,47.21,156.83,156.68,0.37647]
[1723246813363,6.3791,156.77,156.68,0.12549]
[1723246813984,47.21,156.8,156.71,6.3811]
[1723246814286,20.0,156.79,156.74,6.3799]
[1723246814492,47.21,156.83,156.67,0.25098]
[1723246814693,20.0,156.82,156.77,6.3787]
[1723246814989,47.21,156.83,156.69,1.40132318]
[1723246815180,6.3776,156.8,156.75,6.3794]
[1723246815367,6.3776,156.8,156.74,6.3799]
[1723246816094,47.21,156.8,156.69,1.27589541]
[1723246816388,26.378,156.79,156.64,1.27589541]
[1723246816592,47.21,156.83,156.65,68.48591582]
[1723246816806,20.0,156.82,156.67,20.0]
[1723246817001,20.0,156.82,156.78,6.3782]
[1723246817294,20.0,156.82,156.68,1.27571906]
[1723246817488,20.0,156.82,156.69,0.50196]
[1723246817663,6.378,156.79,156.74,6.3796]
[1723246818088,6.3775,156.8,156.74,6.3796]
[1723246818295,6.3775,156.8,156.74,6.3799]
[1723246818679,47.21,156.83,156.75,1.27587405]
[1723246819017,6.416,156.85,156.79,6.3779]
[1723246819197,47.21,156.86,156.71,67.21]
[1723246819411,6.3747,156.87,156.82,6.3763]
[1723246820204,62.5094,156.89,156.73,0.12549]
[1723246820399,47.21,156.86,156.77,6.3787]
[1723246820701,6.3752,156.86,156.8,6.3771]
[1723246821196,62.998229,156.96,156.86,6.3749]
[1723246821498,6.3743,156.88,156.74,47.21]
[1723246821802,47.21,156.91,156.75,66.77713992]
[1723246821989,47.21,156.91,156.75,45.50196]
[1723246822179,47.21,156.88,156.75,0.37647]
[1723246822383,6.3754,156.86,156.8,6.3773]
[1723246822612,53.5846,156.88,156.82,6.3767]
[1723246823092,6.3748,156.87,156.81,6.377]
[1723246823607,6.3738,156.9,156.84,6.3758]
[1723246823777,20.0,156.89,156.84,6.3758]
[1723246824082,6.3744,156.88,156.75,1.65186655]
[1723246824400,47.21,156.88,156.75,1.27526418]
[1723246824606,20.0,156.87,156.75,1.27526418]
[1723246824785,26.3747,156.87,156.75,1.27526418]
[1723246824989,47.21,156.91,156.75,21.27526418]
[1723246825184,6.3748,156.87,156.75,1.27526418]
[1723246825504,6.3748,156.87,156.8,6.3771]
[1723246825682,6.3748,156.87,156.81,6.3769]
[1723246826303,6.3752,156.86,156.8,6.3774]
[1723246826512,47.21,156.85,156.73,6.63597227]
[1723246826682,6.3767,156.82,156.76,6.3787]
[1723246827079,6.3767,156.82,156.77,6.3786]
[1723246828098,47.21,156.85,156.75,6.3791]
[1723246828281,47.21,156.82,156.7,6.63766671]
[1723246828490,47.21,156.79,156.68,6.3823]
[1723246828786,47.21,156.79,156.62,47.21]
[1723246828787,6.3798,156.75,156.69,6.3819]
[1723246828993,6.3801,156.74,156.69,6.3819]
[1723246829182,6.3804,156.73,156.67,6.3824]
[1723246829375,15.9478,156.77,156.64,6.64119796]
[1723246829376,47.21,156.76,156.64,6.64119796]
[1723246829581,47.21,156.73,156.57,26.2222]
[1723246829789,47.21,156.73,156.61,6.64102016]
[1723246829988,47.21,156.73,156.57,6.2222]
[1723246830285,6.3824,156.69,156.58,6.63936704]
[1723246830484,47.21,156.73,156.63,6.384]
[1723246830485,6.3824,156.68,156.63,6.384]
[1723246830784,6.3829,156.67,156.58,6.63936704]
[1723246830976,6.3832,156.66,156.61,6.3852]
[1723246831473,6.3826,156.68,156.55,6.64137887]
[1723246831683,6.3828,156.67,156.62,6.3848]
[1723246831903,6.3833,156.66,156.6,6.3853]
[1723246832079,47.21,156.69,156.55,6.64137887]
[1723246832285,47.21,156.63,156.55,6.3877]
[1723246832482,6.3853,156.61,156.56,6.3871]
[1723246833006,53.5946,156.63,156.56,6.3871]
[1723246833183,20.0,156.62,156.57,6.3869]
[1723246833385,26.3849,156.62,156.57,6.3869]
[1723246834179,6.3852,156.61,156.5,6.64119305]
[1723246834381,47.21,156.66,156.51,1.27735426]
[1723246834601,6.3829,156.67,156.61,6.3852]
[1723246834789,62.8598,156.69,156.62,6.3848]
[1723246834990,15.6498,156.69,156.54,20.0]
[1723246835201,15.6498,156.69,156.65,6.3836]
[1723246835399,15.6498,156.69,156.55,1.27673087]
[1723246835594,15.6498,156.69,156.64,6.3838]
[1723246835999,22.0318,156.69,156.64,6.3838]
[1723246836196,47.21,156.72,156.57,0.12549]
[1723246836489,47.21,156.75,156.59,0.12549]
[1723246836697,47.21,156.75,156.65,6.3832]
[1723246836698,6.3811,156.72,156.65,6.3832]
[1723246836892,47.21,156.75,156.59,68.86302405]
[1723246837109,15.6498,156.76,156.63,0.12549]
[1723246837314,6.3808,156.72,156.67,6.3828]
[1723246837517,6.3812,156.71,156.66,6.3831]
[1723246838013,6.3808,156.72,156.66,6.3831]
[1723246838214,6.38,156.74,156.68,6.382]
[1723246838420,6.3796,156.75,156.7,6.3815]
[1723246839192,6.3802,156.74,156.69,6.3819]
[1723246839402,6.3808,156.72,156.67,6.3828]
[1723246839707,6.3808,156.72,156.61,0.12549]
[1723246839708,6.3816,156.7,156.65,6.3835]
[1723246839889,6.3809,156.72,156.67,6.3827]
[1723246840094,6.3804,156.73,156.67,6.3827]
[1723246840293,15.6498,156.76,156.6,1.27646844]
[1723246840610,15.6498,156.76,156.61,1.27634081]
[1723246841092,6.3799,156.75,156.69,6.3819]
[1723246841302,6.3802,156.74,156.68,6.3823]
[1723246841889,6.3812,156.71,156.66,6.3829]
[1723246842128,6.3812,156.71,156.56,69.4505]
[1723246842129,6.382,156.69,156.64,6.3836]
[1723246842418,6.3825,156.68,156.63,6.3843]
[1723246842616,6.3816,156.7,156.64,6.384]
[1723246842825,6.3812,156.71,156.66,6.3832]
[1723246842988,6.3796,156.75,156.7,6.3813]
[1723246843693,6.3796,156.75,156.7,6.3816]
[1723246844091,13.0246,156.77,156.72,6.3804]
[1723246844296,47.21,156.82,156.65,0.12549]
[1723246844595,6.3789,156.77,156.72,6.3806]
[1723246844991,47.21,156.82,156.65,1.77786163]
[1723246844992,47.21,156.82,156.65,0.25098]
[1723246845229,6.3803,156.74,156.69,6.3816]
[1723246845517,6.38,156.74,156.69,6.382]
[1723246845719,6.3795,156.76,156.65,0.12549]
[1723246845931,6.3795,156.75,156.71,6.3809]
[1723246846225,6.3795,156.75,156.69,6.3816]
[1723246846720,6.3795,156.75,156.65,0.12549]
[1723246846721,47.21,156.79,156.66,0.12549]
[1723246846897,47.21,156.79,156.66,0.50196]
[1723246847217,47.21,156.79,156.68,6.3824]
[1723246847516,47.21,156.79,156.62,47.21]
[1723246847517,53.5892,156.76,156.71,6.3812]
[1723246847721,6.3792,156.76,156.71,6.3812]
[1723246848109,6.3784,156.78,156.73,6.3803]
[1723246848624,47.21,156.79,156.72,6.3804]
[1723246848800,6.3799,156.75,156.7,6.3815]
[1723246849413,6.3804,156.73,156.69,6.3819]
[1723246849607,6.38,156.74,156.69,6.3819]
[1723246849925,6.38,156.74,156.54,2.55494193]